fUST/lending_fUST_20241211
["ID","MTS","AMOUNT","RATE_DAILY","PERIOD"]
[344990230,1733907045374,-331.7058658,0.00030642,2]
[344990232,1733907045385,-151.0,0.00030642,7]
[344990234,1733907045395,-151.0,0.00030642,7]
[344990236,1733907045406,-151.0,0.00030642,7]
[344990238,1733907045417,-151.0,0.00030642,7]
[344990240,1733907045430,-151.0,0.00030642,7]
[344990242,1733907045440,-151.0,0.00030642,7]
[344990244,1733907045451,-151.0,0.00030642,7]
[344990246,1733907045462,-151.0,0.00030642,7]
[344990248,1733907045473,-152.172821,0.00030642,7]
[344990250,1733907045484,-151.0,0.00030642,7]
[344990252,1733907045494,-151.0,0.00030642,7]
[344990254,1733907045505,-151.0,0.00030642,7]
[344990256,1733907045516,-160.272397,0.00030642,7]
[344990258,1733907045526,-151.0,0.00030642,7]
[344990260,1733907045537,-620.43305,0.00030642,7]
[344990262,1733907045547,-620.43305,0.00030642,7]
[344990264,1733907045558,-620.43305,0.00030642,7]
[344990266,1733907045568,-620.43305,0.00030642,7]
[344990268,1733907045579,-620.43305,0.00030642,7]
[344990270,1733907045590,-620.43305,0.00030642,7]
[344990272,1733907045603,-620.43305,0.00030642,7]
[344990274,1733907045613,-620.43305,0.00030642,7]
[344990276,1733907045623,-620.43305,0.00030642,7]
[344990278,1733907045634,-620.43305,0.00030642,7]
[344990280,1733907045645,-620.43305,0.00030642,7]
[344990282,1733907045655,-620.43305,0.00030642,7]
[344990284,1733907045665,-620.43305,0.00030642,7]
[344990286,1733907045677,-620.43305,0.00030642,7]
[344990289,1733907045689,-620.43305,0.00030642,7]
[344990291,1733907045698,-620.43305,0.00030642,7]
[344990293,1733907045707,-620.43305,0.00030642,7]
[344990295,1733907045717,-620.43305,0.00030642,7]
[344990297,1733907045726,-620.43305,0.00030642,7]
[344990298,1733907045736,-620.43305612,0.00030642,7]
[344990300,1733907045745,-151.0,0.00030642,7]
[344990303,1733907045755,-151.0,0.00030642,7]
[344990305,1733907045764,-151.0,0.00030642,7]
[344990307,1733907045774,-151.0,0.00030642,7]
[344990309,1733907045783,-296.920712,0.00030642,7]
[344990310,1733907045793,-158.943219,0.00030642,7]
[344990312,1733907045802,-225.423622,0.00030642,7]
[344990314,1733907045811,-151.0,0.00030642,7]
[344990316,1733907045820,-151.0,0.00030642,7]
[344990318,1733907045831,-151.0,0.00030642,7]
[344990320,1733907045840,-151.0,0.00030642,7]
[344990322,1733907045850,-151.0,0.00030642,7]
[344990324,1733907045860,-278.03818,0.00030642,7]
[344990326,1733907045869,-151.0,0.00030642,7]
[344990328,1733907045879,-735.321013,0.00030642,7]
[344990330,1733907045889,-735.321013,0.00030642,7]
[344990332,1733907045899,-735.321013,0.00030642,7]
[344990334,1733907045909,-735.321013,0.00030642,7]
[344990336,1733907045919,-735.321013,0.00030642,7]
[344990338,1733907045931,-735.321013,0.00030642,7]
[344990340,1733907045940,-735.321013,0.00030642,7]
[344990342,1733907045950,-735.321013,0.00030642,7]
[344990344,1733907045959,-735.321013,0.00030642,7]
[344990347,1733907045969,-735.321013,0.00030642,7]
[344990350,1733907045979,-735.321013,0.00030642,7]
[344990352,1733907045989,-735.321013,0.00030642,7]
[344990354,1733907045998,-735.321013,0.00030642,7]
[344990356,1733907046007,-735.321013,0.00030642,7]
[344990358,1733907046017,-735.321013,0.00030642,7]
[344990360,1733907046026,-735.321013,0.00030642,7]
[344990362,1733907046035,-735.321013,0.00030642,7]
[344990364,1733907046047,-735.321013,0.00030642,7]
[344990366,1733907046056,-735.321013,0.00030642,7]
[344990368,1733907046066,-188.721799,0.00030642,7]
[344990370,1733907046075,-735.321014,0.00030642,7]
[344990372,1733907046085,-188.721799,0.00030642,7]
[344990374,1733907046094,-188.721799,0.00030642,7]
[344990376,1733907046104,-188.721799,0.00030642,7]
[344990378,1733907046114,-188.721799,0.00030642,7]
[344990380,1733907046125,-188.721799,0.00030642,7]
[344990382,1733907046135,-188.721799,0.00030642,7]
[344990384,1733907046145,-188.721799,0.00030642,7]
[344990386,1733907046155,-188.721799,0.00030642,7]
[344990388,1733907046165,-188.721799,0.00030642,7]
[344990390,1733907046177,-188.721799,0.00030642,7]
[344990392,1733907046188,-188.721799,0.00030642,7]
[344990394,1733907046198,-188.721799,0.00030642,7]
[344990396,1733907046209,-188.721799,0.00030642,7]
[344990398,1733907046220,-188.721799,0.00030642,7]
[344990400,1733907046232,-188.721799,0.00030642,7]
[344990402,1733907046243,-188.721799,0.00030642,7]
[344990405,1733907046254,-188.721799,0.00030642,7]
[344990407,1733907046264,-188.721799,0.00030642,7]
[344990409,1733907046275,-188.721794,0.00030642,7]
[344990410,1733907046285,-151.0,0.00030642,7]
[344990413,1733907046299,-151.0,0.00030642,7]
[344990415,1733907046309,-151.0,0.00030642,7]
[344990417,1733907046320,-151.0,0.00030642,7]
[344990419,1733907046331,-151.0,0.00030642,7]
[344990421,1733907046341,-151.0,0.00030642,7]
[344990423,1733907046354,-151.0,0.00030642,7]
[344990425,1733907046364,-151.0,0.00030642,7]
[344990427,1733907046375,-151.0,0.00030642,7]
[344990429,1733907046386,-151.0,0.00030642,7]
[344990431,1733907046397,-151.0,0.00030642,7]
[344990433,1733907046407,-151.0,0.00030642,7]
[344990435,1733907046417,-151.0,0.00030642,7]
[344990437,1733907046428,-151.0,0.00030642,7]
[344990439,1733907046439,-151.0,0.00030642,7]
[344990441,1733907046450,-151.0,0.00030642,7]
[344990443,1733907046461,-151.0,0.00030642,7]
[344990445,1733907046471,-151.0,0.00030642,7]
[344990447,1733907046481,-237.775104,0.00030642,7]
[344990449,1733907046492,-151.0,0.00030642,7]
[344990451,1733907046503,-151.0,0.00030642,7]
[344990453,1733907046513,-151.0,0.00030642,7]
[344990455,1733907046523,-151.0,0.00030642,7]
[344990457,1733907046534,-151.0,0.00030642,7]
[344990459,1733907046545,-151.0,0.00030642,7]
[344990461,1733907046556,-153.10357,0.00030642,7]
[344990463,1733907046566,-1000.0,0.00030642,28]
[344990465,1733907046576,-1000.0,0.00030642,28]
[344990467,1733907046588,-1000.0,0.00030642,28]
[344990469,1733907046608,-1000.0,0.00030642,28]
[344990470,1733907046623,-1000.0,0.00030642,28]
[344990472,1733907046632,-1000.0,0.00030642,28]
[344990474,1733907046642,-1000.0,0.00030642,28]
[344990476,1733907046653,-1000.0,0.00030642,28]
[344990478,1733907046663,-999.78,0.00030642,28]
[344990480,1733907046676,-338983.84982531,0.00030643,10]
[344990484,1733907046706,-617.85,0.00030643,10]
[344990503,1733907046900,-402.3951869,0.00030643,10]
[344990507,1733907046934,-1029.0,0.00030643,10]
[344991794,1733907386307,157.894855,0.00013973,2]
[344991801,1733908042346,-157.894855,0.00022174,2]
[344991802,1733908042367,-520.4971582,0.00026034,2]
[344991803,1733908042389,-177.994578,0.00026066,2]
[344991804,1733908042413,-306.4007451,0.00026405,2]
[344991805,1733908042435,-300.0,0.00026604,2]
[344991806,1733908042456,-21.10961785,0.00026604,2]
[344991807,1733908152094,-170.720112,0.00025983,2]
[344991808,1733908152116,-300.0,0.00026604,2]
[344991809,1733908152137,-300.0,0.00026604,2]
[344991810,1733908152158,-8727.0608673,0.00026605,2]
[344991811,1733908171088,-155.24081179,0.00027572,2]
[344991838,1733908232883,-948.68271962,0.000279,2]
[344991840,1733908232892,-300.0,0.00027999,2]
[344991842,1733908232902,-300.0,0.00027999,2]
[344991844,1733908232911,-3000.0,0.00028,2]
[344991845,1733908232920,-29042.11559341,0.00028,2]
[344991950,1733908238758,-957.88440659,0.00028,2]
[344991952,1733908238767,-9710.38336,0.00028,5]
[344991954,1733908238777,-948.68271956,0.00028278,2]
[344991956,1733908238786,-160.0,0.0002856,3]
[344991958,1733908238795,-948.68271956,0.00028657,2]
[344991960,1733908238805,-155.01204059,0.00028951,2]
[344991962,1733908238816,-448.194,0.0002911,2]
[344991964,1733908238825,-646.8532534,0.00029417,2]
[344991966,1733908238835,-379.31020042,0.00029599,2]
[344991969,1733908238844,-379.31020041,0.00029649,2]
[344991972,1733908238853,-500.0,0.00029673,5]
[344991975,1733908238863,-500.0,0.00029673,5]
[344991977,1733908238872,-500.0,0.00029673,5]
[344991979,1733908238882,-500.0,0.00029699,2]
[344991981,1733908238891,-272.91510106,0.00029699,2]
[344991983,1733908238900,-281.76649315,0.00029699,2]
[344991985,1733908238910,-267.03153433,0.00029699,2]
[344991987,1733908238919,-500.0,0.00029699,2]
[344991989,1733908238928,-500.0,0.00029699,2]
[344991991,1733908238937,-394.87816966,0.00029699,2]
[344991993,1733908238947,-500.0,0.00029699,2]
[344991995,1733908238957,-500.0,0.00029699,2]
[344991997,1733908238966,-500.0,0.00029699,2]
[344991999,1733908238975,-500.0,0.00029699,2]
[344992001,1733908238985,-500.0,0.00029699,2]
[344992003,1733908238995,-500.0,0.00029699,2]
[344992005,1733908239004,-500.0,0.00029699,2]
[344992007,1733908239014,-500.0,0.00029699,2]
[344992009,1733908239028,-500.0,0.00029699,2]
[344992011,1733908239037,-500.0,0.00029699,2]
[344992013,1733908239047,-500.0,0.00029699,2]
[344992015,1733908239056,-500.0,0.00029699,2]
[344992017,1733908239066,-441.14981415,0.00029699,2]
[344992271,1733908246745,-948.68271956,0.00029035,2]
[344992273,1733908246754,-948.68271956,0.00029414,2]
[344992275,1733908246764,-161.39884052,0.00029673,5]
[344992277,1733908246773,-500.0,0.00029673,5]
[344992279,1733908246782,-200.58655768,0.00029673,5]
[344992450,1733908248388,165.0,0.00022,2]
[344993569,1733908460484,158.99834,0.00013973,2]
[344993570,1733908503804,607.0,0.0002,3]
[344993571,1733908504125,607.0,0.0002,3]
[344993572,1733908504433,607.0,0.0002,3]
[344993574,1733908504755,607.0,0.0002,3]
[344993583,1733909239153,-158.99834,0.00020447,2]
[344993584,1733909239177,-284.5457636,0.00025,5]
[344993585,1733909239202,-158.99834,0.00026921,2]
[344993586,1733909239225,-174.100399,0.00027657,2]
[344993587,1733909239250,-278.748793,0.00027856,2]
[344993588,1733909239274,-181.535076,0.00027896,2]
[344993589,1733909239299,-180.55593685,0.00027943,2]
[344993590,1733909244094,-242.23016133,0.00027943,2]
[344993605,1733909322020,1742.68726161,0.00011,2]
[344993616,1733909356176,-345.387551,0.00023,2]
[344993617,1733909356199,-3498.54298526,0.000245,2]
[344993618,1733909356220,-300.0,0.00024989,2]
[344993619,1733909356242,-300.0,0.00024989,2]
[344993620,1733909356264,-38588.56085105,0.0002499,5]
[344993621,1733909358155,-25774.82809713,0.0002499,5]
[344993622,1733909358176,-1540.47081122,0.00025,7]
[344993623,1733909358198,-218026.7116484,0.00025,2]
[344993624,1733909364090,-500.0,0.00024973,2]
[344993625,1733909364112,-500.0,0.00024973,2]
[344993626,1733909364132,-113699.10309865,0.00025,2]
[344993627,1733909364153,-9035.75430726,0.00025,2]
[344993628,1733909366268,164.467672,0.00013973,2]
[344993631,1733909368164,-164.467672,0.00020807,2]
[344993632,1733909368185,-355.75601987,0.000249,2]
[344993633,1733909368207,-1328.24569274,0.00025,2]
[344993634,1733909368228,-150.50327989,0.00025521,2]
[344993635,1733909368248,-33.02187883,0.00025521,2]
[344993663,1733909431830,-500.0,0.00024973,2]
[344993664,1733909431840,-500.0,0.00024973,2]
[344993666,1733909431850,-500.0,0.00024973,2]
[344993668,1733909431860,-481.82,0.00024973,2]
[344993691,1733909437783,-18.18,0.00024973,2]
[344993693,1733909437793,-234.25928356,0.00025421,2]
[344993694,1733909437803,-1000.0,0.00025521,2]
[344993695,1733909437813,-641.71493296,0.00025521,2]
[344993696,1733909437823,-506.62976268,0.00025521,2]
[344993697,1733909437833,-1000.0,0.00025521,2]
[344993698,1733909437843,-355.75601983,0.00025708,2]
[344993699,1733909437852,-217.03111564,0.00025747,2]
[344993700,1733909437868,-956.65542476,0.00025747,2]
[344993701,1733909437879,-3323.27408734,0.00026,30]
[344993702,1733909437889,-300.0,0.00026499,2]
[344993703,1733909437899,-2080.70317224,0.000265,2]
[344993704,1733909437908,-355.75601983,0.00026516,2]
[344993705,1733909437917,-586.80329518,0.00026522,2]
[344993706,1733909437926,-512.2219228,0.00026522,2]
[344993707,1733909437936,-8681.65138498,0.00027,2]
[344993708,1733909437946,-355.75601983,0.00027324,2]
[344993709,1733909437956,-105536.73107373,0.000275,7]
[344993710,1733909437967,-164.467672,0.00027641,2]
[344993711,1733909437977,-689.75449682,0.00027943,2]
[344993712,1733909437986,-158.73312798,0.00028105,2]
[344993713,1733909437995,-355.75601983,0.00028132,2]
[344993714,1733909438005,-760.93759395,0.00028878,2]
[344993715,1733909438014,-355.75601983,0.0002894,2]
[344993716,1733909438024,-500.0,0.00028999,2]
[344993717,1733909438033,-500.0,0.00028999,2]
[344993718,1733909438044,-500.0,0.00028999,2]
[344993719,1733909438053,-500.0,0.00028999,2]
[344993720,1733909438063,-500.0,0.00028999,2]
[344993721,1733909438073,-500.0,0.00028999,2]
[344993722,1733909438082,-500.0,0.00028999,2]
[344993723,1733909438091,-500.0,0.00028999,2]
[344993724,1733909438101,-500.0,0.00028999,2]
[344993725,1733909438110,-500.0,0.00028999,2]
[344993726,1733909438119,-500.0,0.00028999,2]
[344993727,1733909438129,-500.0,0.00028999,2]
[344993728,1733909438138,-500.0,0.00028999,2]
[344993729,1733909438148,-500.0,0.00028999,2]
[344993730,1733909438158,-321.10669458,0.00028999,2]
[344993731,1733909438167,-500.0,0.00028999,2]
[344993732,1733909438176,-165.45380711,0.00028999,2]
[344993733,1733909438185,-500.0,0.00028999,2]
[344993734,1733909438195,-500.0,0.00028999,2]
[344993735,1733909438204,-500.0,0.00028999,2]
[344993736,1733909438214,-500.0,0.00028999,2]
[344993737,1733909438223,-500.0,0.00028999,2]
[344993738,1733909438232,-500.0,0.00028999,2]
[344993739,1733909438242,-500.0,0.00028999,2]
[344993740,1733909438252,-500.0,0.00028999,2]
[344993741,1733909438262,-500.0,0.00028999,2]
[344993742,1733909438272,-500.0,0.00028999,2]
[344993743,1733909438281,-500.0,0.00028999,2]
[344993744,1733909438292,-500.0,0.00028999,2]
[344993745,1733909438302,-500.0,0.00028999,2]
[344993746,1733909438312,-500.0,0.00028999,2]
[344993747,1733909438322,-162.25169477,0.00028999,2]
[344993748,1733909438331,-500.0,0.00028999,2]
[344993749,1733909438341,-500.0,0.00028999,2]
[344993750,1733909438351,-500.0,0.00028999,2]
[344993751,1733909438360,-500.0,0.00028999,2]
[344993752,1733909438370,-500.0,0.00028999,2]
[344993753,1733909438381,-500.0,0.00028999,2]
[344993754,1733909438391,-500.0,0.00028999,2]
[344993755,1733909438401,-500.0,0.00028999,2]
[344993756,1733909438414,-500.0,0.00028999,2]
[344993757,1733909438424,-500.0,0.00028999,2]
[344993758,1733909438434,-500.0,0.00028999,2]
[344993759,1733909438443,-500.0,0.00028999,2]
[344993760,1733909438453,-500.0,0.00028999,2]
[344993761,1733909438463,-500.0,0.00028999,2]
[344993762,1733909438473,-500.0,0.00028999,2]
[344993763,1733909438482,-500.0,0.00028999,2]
[344993764,1733909438492,-500.0,0.00028999,2]
[344993765,1733909438502,-500.0,0.00028999,2]
[344993766,1733909438512,-500.0,0.00028999,2]
[344993767,1733909438522,-500.0,0.00028999,2]
[344993768,1733909438532,-500.0,0.00028999,2]
[344993769,1733909438542,-500.0,0.00028999,2]
[344993770,1733909438553,-500.0,0.00028999,2]
[344993771,1733909438563,-500.0,0.00028999,2]
[344993772,1733909438572,-500.0,0.00028999,2]
[344993773,1733909438582,-500.0,0.00028999,2]
[344993774,1733909438592,-500.0,0.00028999,2]
[344993775,1733909438603,-500.0,0.00028999,2]
[344993776,1733909438613,-500.0,0.00028999,2]
[344993777,1733909438623,-500.0,0.00028999,2]
[344993778,1733909438633,-500.0,0.00028999,2]
[344993779,1733909438643,-500.0,0.00028999,2]
[344993780,1733909438653,-158.4385719,0.00028999,2]
[344993781,1733909438771,-500.0,0.00028999,2]
[344993782,1733909438788,-500.0,0.00028999,2]
[344993783,1733909438803,-500.0,0.00028999,2]
[344993784,1733909438813,-500.0,0.00028999,2]
[344993785,1733909438823,-500.0,0.00028999,2]
[344993786,1733909438833,-500.0,0.00028999,2]
[344993787,1733909438843,-500.0,0.00028999,2]
[344993788,1733909438852,-500.0,0.00028999,2]
[344993789,1733909438862,-132449.15552367,0.00029,14]
[344993790,1733909438871,-982.68481871,0.00029,2]
[344993791,1733909438881,-302.72757545,0.00029,2]
[344993792,1733909438891,-7786.36205687,0.00029052,2]
[344993793,1733909438901,-636.1856681,0.00029099,2]
[344993794,1733909438912,-186.92207403,0.00029099,2]
[344993795,1733909438921,-191.04057074,0.00029099,2]
[344993796,1733909438931,-70349.84797563,0.000291,2]
[344993797,1733909438941,-429.61,0.0002911,2]
[344993798,1733909438951,-420.0,0.00029149,2]
[344993799,1733909438961,-302.72757545,0.0002929,2]
[344993800,1733909438970,-150.0,0.00029373,2]
[344993801,1733909438980,-7786.36205688,0.00029541,2]
[344993802,1733909438990,-302.72757545,0.0002958,2]
[344993803,1733909439000,-498.12926747,0.00029597,18]
[344993804,1733909439009,-2046.68852737,0.000296,30]
[344993805,1733909439022,-2000.0,0.000296,10]
[344993806,1733909439032,-4470.60911238,0.00029601,2]
[344993807,1733909439047,-502.24307202,0.00029673,5]
[344993808,1733909439057,-500.0,0.00029673,5]
[344993809,1733909439067,-500.0,0.00029673,5]
[344993810,1733909439077,-500.0,0.00029673,5]
[344993811,1733909439087,-500.0,0.00029673,5]
[344993812,1733909439097,-518.15008782,0.00029673,5]
[344993813,1733909439106,-500.0,0.00029673,5]
[344993814,1733909439116,-500.744659,0.00029673,2]
[344993815,1733909439126,-500.0,0.00029673,5]
[344993816,1733909439135,-500.0,0.00029673,5]
[344993817,1733909439146,-500.0,0.00029698,2]
[344993818,1733909439156,-151.0,0.00029698,7]
[344993819,1733909439166,-443.37679354,0.00029699,7]
[344993820,1733909439176,-500.0,0.00029699,7]
[344993821,1733909439186,-91670.69078127,0.000297,2]
[344993822,1733909439196,-331.7058658,0.000297,2]
[344993823,1733909439205,-339577.51107057,0.000297,2]
[344993824,1733909439215,-151.0,0.000297,12]
[344993825,1733909439224,-151.0,0.000297,14]
[344993826,1733909439234,-151.0,0.000297,11]
[344993827,1733909439244,-151.0,0.000297,18]
[344993828,1733909439254,-170.98508739,0.000297,7]
[344993829,1733909439265,-170.98508739,0.000297,7]
[344993830,1733909439275,-170.98508739,0.000297,7]
[344993831,1733909439285,-170.98,0.000297,7]
[344993832,1733909439302,-170.98508739,0.000297,7]
[344993833,1733909439311,-170.98508739,0.000297,7]
[344993835,1733909439321,-170.98508739,0.000297,7]
[344993837,1733909439330,-170.98508739,0.000297,7]
[344993839,1733909439339,-170.98508739,0.000297,7]
[344993840,1733909439349,-185.63338206,0.000297,7]
[344993841,1733909439359,-185.63338206,0.000297,7]
[344993842,1733909439368,-185.63338206,0.000297,7]
[344993843,1733909439378,-185.63338206,0.000297,7]
[344993844,1733909439389,-185.63338206,0.000297,7]
[344993845,1733909439399,-185.63338206,0.000297,7]
[344993846,1733909439409,-185.63338206,0.000297,7]
[344993848,1733909439419,-185.63338206,0.000297,7]
[344993849,1733909439429,-185.63338206,0.000297,7]
[344993850,1733909439439,-185.63338206,0.000297,7]
[344993851,1733909439449,-185.63338206,0.000297,7]
[344993852,1733909439458,-185.63338206,0.000297,7]
[344993854,1733909439468,-185.63338206,0.000297,7]
[344993855,1733909439478,-185.63338206,0.000297,7]
[344993857,1733909439488,-185.63338206,0.000297,7]
[344993858,1733909439498,-185.63338206,0.000297,7]
[344993859,1733909439507,-185.63338206,0.000297,7]
[344993860,1733909439518,-185.63338206,0.000297,7]
[344993861,1733909439528,-185.63338206,0.000297,7]
[344993863,1733909439542,-185.63,0.000297,7]
[344993865,1733909439551,-278.45007308,0.000297,7]
[344993866,1733909439561,-278.45007308,0.000297,7]
[344993868,1733909439570,-278.45007308,0.000297,7]
[344993869,1733909439580,-278.45007308,0.000297,7]
[344993870,1733909439590,-278.45007308,0.000297,7]
[344993871,1733909439600,-278.45007308,0.000297,7]
[344993872,1733909439610,-278.45007308,0.000297,7]
[344993873,1733909439619,-278.45007308,0.000297,7]
[344993874,1733909439629,-278.45007308,0.000297,7]
[344993875,1733909439639,-278.45007308,0.000297,7]
[344993876,1733909439649,-278.45007308,0.000297,7]
[344993878,1733909439658,-278.45007308,0.000297,7]
[344993880,1733909439668,-278.45007308,0.000297,7]
[344993881,1733909439678,-278.45007308,0.000297,7]
[344993882,1733909439688,-278.45007308,0.000297,7]
[344993883,1733909439697,-278.45007308,0.000297,7]
[344993884,1733909439707,-278.45007308,0.000297,7]
[344993886,1733909439717,-278.45007308,0.000297,7]
[344993888,1733909439729,-278.45007308,0.000297,7]
[344993889,1733909439741,-151.0,0.000297,7]
[344993891,1733909439751,-355.75601983,0.00029748,2]
[344993892,1733909439761,-2070.76947805,0.00029763,2]
[344993893,1733909439771,-666.0,0.00029763,2]
[344993895,1733909439781,-170.98,0.00029763,7]
[344993896,1733909439793,-278.45,0.00029763,7]
[344993897,1733909439803,-994.202737,0.000298,2]
[344993898,1733909439814,-151.0,0.000298,12]
[344993899,1733909439824,-151.0,0.000298,18]
[344993900,1733909439833,-151.0,0.000298,14]
[344993901,1733909439844,-151.0,0.000298,18]
[344993902,1733909439854,-151.0,0.000298,17]
[344993903,1733909439864,-151.0,0.000298,10]
[344993904,1733909439874,-151.0,0.000298,17]
[344993905,1733909439884,-89531.55410948,0.000298,120]
[344993906,1733909439893,-454.4568209,0.00029836,30]
[344993907,1733909439902,-4470.60911238,0.0002984,2]
[344993908,1733909439912,-2070.76947801,0.00029851,2]
[344993909,1733909439921,-500.0,0.00029863,7]
[344993910,1733909439930,-501.98098709,0.00029863,7]
[344993911,1733909439939,-500.0,0.00029863,7]
[344993913,1733909439948,-500.0,0.00029863,7]
[344993915,1733909439958,-197.15472551,0.00029863,7]
[344993916,1733909439968,-549.43992422,0.00029863,7]
[344993917,1733909439977,-502.78557684,0.00029863,7]
[344993918,1733909439986,-260.58897869,0.00029863,7]
[344993919,1733909439996,-500.0,0.00029863,7]
[344993920,1733909440005,-500.0,0.00029863,7]
[344993921,1733909440015,-503.13558189,0.00029863,7]
[344993922,1733909440024,-500.0,0.00029863,7]
[344993923,1733909440034,-500.0,0.00029863,7]
[344993924,1733909440045,-500.0,0.00029863,7]
[344993925,1733909440055,-500.0,0.00029863,7]
[344993926,1733909440064,-424.63758225,0.00029863,7]
[344993927,1733909440073,-502.65638944,0.00029863,7]
[344993928,1733909440083,-500.0,0.00029863,7]
[344993929,1733909440092,-500.0,0.00029863,7]
[344993930,1733909440101,-625.07234563,0.00029863,7]
[344993931,1733909440111,-509.40577235,0.00029863,7]
[344993932,1733909440120,-500.0,0.00029863,7]
[344993933,1733909440129,-500.0,0.00029863,7]
[344993934,1733909440139,-500.0,0.00029863,7]
[344993935,1733909440148,-500.0,0.00029863,7]
[344993936,1733909440158,-500.0,0.00029863,7]
[344993937,1733909440167,-502.36786243,0.00029863,7]
[344993938,1733909440177,-500.0,0.00029863,7]
[344993939,1733909440187,-500.0,0.00029863,7]
[344993940,1733909440196,-507.31616338,0.00029863,7]
[344993941,1733909440209,-480.34669901,0.00029863,7]
[344993942,1733909440218,-585.06441287,0.00029863,7]
[344993943,1733909440229,-151.465447,0.00029863,7]
[344993944,1733909440238,-500.0,0.00029863,7]
[344993945,1733909440248,-505.02515541,0.00029863,7]
[344993946,1733909440257,-500.0,0.00029863,7]
[344993947,1733909440266,-554.83598038,0.00029863,7]
[344993948,1733909440276,-500.0,0.00029863,7]
[344993949,1733909440286,-500.0,0.00029863,7]
[344993950,1733909440297,-500.0,0.00029863,7]
[344993951,1733909440306,-501.77735853,0.00029863,7]
[344993952,1733909440315,-504.09375412,0.00029863,7]
[344993953,1733909440325,-501.62895876,0.00029863,7]
[344993954,1733909440335,-500.0,0.00029863,7]
[344993955,1733909440344,-500.0,0.00029863,7]
[344993956,1733909440354,-503.1405729,0.00029863,7]
[344993957,1733909440363,-500.0,0.00029863,7]
[344993958,1733909440372,-500.0,0.00029863,7]
[344993959,1733909440382,-507.53055701,0.00029863,7]
[344993960,1733909440391,-500.0,0.00029863,7]
[344993961,1733909440401,-501.82003512,0.00029863,7]
[344993962,1733909440411,-200.0,0.00029863,7]
[344993963,1733909440420,-500.0,0.00029863,7]
[344993964,1733909440429,-500.0,0.00029863,7]
[344993965,1733909440439,-502.53970196,0.00029863,7]
[344993966,1733909440449,-500.0,0.00029863,7]
[344993967,1733909440458,-500.0,0.00029863,7]
[344993968,1733909440468,-500.0,0.00029863,7]
[344993969,1733909440478,-500.0,0.00029863,7]
[344993970,1733909440488,-151.0,0.00029863,7]
[344993971,1733909440498,-489.55550035,0.00029863,7]
[344993972,1733909440508,-499.68838205,0.00029863,7]
[344993973,1733909440517,-620.43305,0.00029863,7]
[344993974,1733909440528,-620.43305,0.00029863,7]
[344993975,1733909440539,-500.0,0.00029863,7]
[344993976,1733909440549,-500.0,0.00029863,7]
[344993977,1733909440559,-500.0,0.00029863,7]
[344993978,1733909440568,-620.43305,0.00029863,7]
[344993979,1733909440578,-620.43305,0.00029863,7]
[344993980,1733909440588,-500.0,0.00029863,7]
[344993981,1733909440598,-500.0,0.00029863,7]
[344993982,1733909440608,-500.0,0.00029863,7]
[344993983,1733909440618,-500.0,0.00029863,7]
[344993984,1733909440627,-500.0,0.00029863,7]
[344993985,1733909440637,-256.36038494,0.00029863,7]
[344993986,1733909440647,-500.0,0.00029863,7]
[344993987,1733909440656,-500.0,0.00029863,7]
[344993988,1733909440666,-500.0,0.00029863,7]